bitfinex/quotes_ETHUSD_20241207
["timestamp","ask_amount","ask_price","bid_price","bid_amount"]
[1733571397421,1.37699289,4005.5,4005.4,0.05]
[1733571398235,3.45064047,4005.5,4005.4,0.05]
[1733571398779,1.37699289,4005.5,4005.4,0.05]
[1733571398984,5.7169236,4005.5,4005.4,0.05]
[1733571399216,3.10264709,4005.5,4005.4,0.05]
[1733571399605,1.37760025,4005.5,4005.4,0.05]
[1733571399927,5.71875517,4005.5,4005.4,0.05]
[1733571400079,1.37760025,4005.5,4005.4,0.05]
[1733571400281,3.10264709,4005.5,4005.4,0.05]
[1733571400688,1.37760025,4005.5,4005.4,0.05]
[1733571401785,3.10264709,4005.5,4005.4,0.05]
[1733571402190,5.71875517,4005.5,4005.4,0.05]
[1733571402521,3.99370833,4005.5,4005.0,0.24788824]
[1733571402729,1.56942505,4005.1,4005.0,0.24788824]
[1733571402884,2.86734167,4005.1,4005.0,0.24788824]
[1733571403083,2.94690392,4005.1,4005.0,0.24788824]
[1733571403284,1.37747887,4005.1,4005.0,0.24788824]
[1733571403527,2.94691654,4005.1,4005.0,0.24788824]
[1733571404026,2.9467281,4005.1,4005.0,0.24788824]
[1733571404214,1.37729043,4005.1,4005.0,0.24788824]
[1733571404728,2.94665011,4005.1,4005.0,0.24788824]
[1733571406706,2.94665011,4005.1,4005.0,0.05]
[1733571407045,2.31528963,4005.1,4005.0,0.05]
[1733571407427,4.40785637,4005.1,4005.0,0.05]
[1733571407942,4.40785637,4005.1,4004.6,1.07715685]
[1733571407943,4.06305963,4005.1,4004.6,1.07715685]
[1733571408231,1.5691687,4004.7,4004.6,1.07715685]
[1733571408435,2.94098502,4004.7,4004.6,1.07715685]
[1733571408644,1.37181632,4004.7,4004.6,1.07715685]
[1733571408943,2.94098502,4004.7,4004.6,1.07715685]
[1733571411206,3.61909302,4004.7,4004.2,0.8038]
[1733571411400,3.61909302,4004.7,4004.0,0.24788824]
[1733571411401,1.04548613,4004.3,4004.1,1.07715685]
[1733571411601,0.0737846,4004.2,4004.1,1.07715685]
[1733571411812,1.04548613,4004.3,4004.1,1.07715685]
[1733571412133,0.07374412,4004.2,4004.1,1.07715685]
[1733571412497,2.79355613,4004.4,4004.1,1.07715685]
[1733571412714,0.07370366,4004.2,4004.1,1.07715685]
[1733571412937,1.04548613,4004.4,4004.0,0.05]
[1733571413123,1.7482,4004.1,4004.0,0.05]
[1733571413643,1.82182269,4004.1,4004.0,0.05]
[1733571414124,3.11955087,4004.1,4004.0,0.05]
[1733571414437,3.11955087,4004.1,4003.4,0.19788824]
[1733571414438,2.52196,4004.0,4003.7,0.05]
[1733571414637,3.56628702,4004.0,4003.7,0.05]
[1733571414813,0.07362269,4003.9,4003.7,0.05]
[1733571415641,0.07362269,4003.9,4003.5,1.07715685]
[1733571415942,0.07362269,4003.9,4003.7,0.05]
[1733571417044,0.07350122,4003.8,4003.7,0.05]
[1733571417206,1.04432702,4004.1,4003.7,0.05]
[1733571417407,0.07341619,4004.0,4003.8,1.07715685]
[1733571417920,1.5691687,4004.6,4004.2,0.19788824]
[1733571417921,1.29410626,4004.6,4004.2,0.19788824]
[1733571418136,1.04432702,4004.8,4004.3,1.88095685]
[1733571418844,0.07318137,4004.7,4004.3,1.88095685]
[1733571419046,1.04432702,4004.8,4004.3,1.88095685]
[1733571419250,0.07318137,4004.6,4004.3,1.88095685]
[1733571419448,1.74794,4004.7,4004.3,0.8038]
[1733571419632,0.07318137,4004.5,4004.1,1.12715685]
[1733571419805,3.57316702,4004.7,4004.1,1.12715685]
[1733571420010,0.07318137,4004.6,4004.1,1.12715685]
[1733571421208,0.07318137,4004.6,4004.4,0.05]
[1733571421755,0.07318137,4004.6,4004.4,1.12715685]
[1733571422051,2.33828126,4004.9,4004.4,1.12715685]
[1733571422256,0.0733676,4004.5,4004.4,1.12715685]
[1733571422435,2.52872,4005.0,4004.4,1.12715685]
[1733571422436,1.04432702,4004.8,4004.4,1.12715685]
[1733571422635,0.0733676,4004.7,4004.4,1.12715685]
[1733571422836,1.04432702,4004.8,4004.4,1.12715685]
[1733571423039,0.0733676,4004.7,4004.4,1.12715685]
[1733571423237,1.04432702,4004.8,4004.4,1.12715685]
[1733571423439,0.0733676,4004.7,4004.4,1.12715685]
[1733571423644,1.04432702,4004.8,4004.4,1.12715685]
[1733571423812,0.0733676,4004.7,4004.4,1.12715685]
[1733571424016,2.33834692,4004.9,4004.5,0.7614]
[1733571424245,1.5691687,4005.1,4004.5,0.7614]
[1733571424246,0.0733676,4004.8,4004.7,1.32504509]
[1733571424861,0.07350122,4004.8,4004.7,1.32504509]
[1733571425028,0.76147322,4005.2,4004.7,1.32504509]
[1733571425211,0.76147322,4005.2,4005.1,0.05]
[1733571425415,0.76147322,4005.2,4005.1,0.8114]
[1733571426060,1.04432702,4005.6,4005.1,0.8114]
[1733571426220,1.04432702,4005.6,4005.3,1.07715685]
[1733571426527,1.04432702,4005.5,4005.3,1.07715685]
[1733571428964,2.79191702,4005.5,4005.1,0.8114]
[1733571429264,3.56665026,4005.5,4005.1,0.05]
[1733571429463,1.04432702,4005.4,4005.1,0.05]
[1733571430719,1.04432702,4005.4,4004.8,0.8497]
[1733571430919,1.04432702,4005.1,4004.8,0.05]
[1733571431370,1.04432702,4005.0,4004.8,1.12715685]
[1733571431660,1.04432702,4005.1,4004.8,1.12715685]
[1733571431963,2.33935171,4005.2,4004.8,1.12715685]
[1733571432168,1.04432702,4005.2,4004.8,1.12715685]
[1733571432643,1.04432702,4005.1,4004.8,1.12715685]
[1733571433463,2.33935171,4005.2,4004.8,1.12715685]
[1733571433670,1.04432702,4005.2,4004.8,1.12715685]
[1733571433962,1.11818853,4005.1,4004.8,1.12715685]
[1733571434322,0.07386151,4005.1,4004.8,1.12715685]
[1733571434528,1.11818853,4005.1,4004.8,1.12715685]
[1733571435069,0.07386151,4005.1,4004.8,1.12715685]
[1733571435760,1.04432702,4005.2,4004.8,1.12715685]
[1733571435965,1.04432702,4005.2,4005.1,0.05]
[1733571437668,1.04470187,4005.2,4005.1,0.05]
[1733571437971,1.04470187,4005.3,4005.1,1.92685685]
[1733571438327,1.04470187,4005.4,4005.1,1.92685685]
[1733571438931,1.04470187,4005.3,4005.1,1.92685685]
[1733571439969,1.04470187,4005.3,4005.1,2.12474509]
[1733571440144,1.04470187,4005.4,4005.1,2.31743078]
[1733571441683,2.3406401,4005.4,4005.1,2.31743078]
[1733571441893,1.04470187,4005.4,4005.1,2.31743078]
[1733571442183,1.04470187,4005.4,4005.1,2.12474509]
[1733571442950,2.3406401,4005.4,4005.1,2.12474509]
[1733571443214,1.04470187,4005.4,4005.1,2.12474509]
[1733571443381,1.04470187,4005.3,4005.1,2.12474509]
[1733571444556,1.04470187,4005.3,4005.1,1.32504509]
[1733571444760,2.3406401,4005.3,4005.1,1.32504509]
[1733571445069,1.04470187,4005.3,4005.1,1.32504509]
[1733571447705,2.3406401,4005.3,4005.1,1.32504509]
[1733571448726,1.04470187,4005.3,4005.1,1.32504509]
[1733571448882,0.07390544,4005.2,4005.1,1.32504509]
[1733571449083,1.04470187,4005.3,4005.1,1.32504509]
[1733571449411,0.07390544,4005.2,4005.1,1.32504509]
[1733571449781,2.3406401,4005.3,4005.1,1.32504509]
[1733571450079,0.07389331,4005.2,4005.1,1.32504509]
[1733571450322,2.3406401,4005.3,4005.1,1.32504509]
[1733571450519,0.07389331,4005.2,4005.1,1.32504509]
[1733571450679,2.3406401,4005.3,4005.1,1.32504509]
[1733571450879,0.07389331,4005.2,4005.1,1.32504509]
[1733571451178,2.3406401,4005.3,4005.1,1.32504509]
[1733571451379,0.07389331,4005.2,4005.1,1.32504509]
[1733571451789,2.3406401,4005.3,4005.1,1.32504509]
[1733571452104,0.07389331,4005.2,4005.1,1.32504509]
[1733571452515,2.3406401,4005.3,4005.1,1.32504509]
[1733571452676,0.07389331,4005.2,4005.1,1.32504509]
[1733571452880,2.3406401,4005.3,4005.1,1.32504509]
[1733571453107,0.07389331,4005.2,4005.1,1.32504509]
[1733571453323,2.3406401,4005.3,4005.1,1.40307789]
[1733571453537,0.07389331,4005.2,4005.1,1.32504509]
[1733571453818,2.3406401,4005.3,4005.1,1.40307789]
[1733571454023,0.07389331,4005.2,4005.1,1.32504509]
[1733571454177,0.07389331,4005.2,4005.1,1.40307771]
[1733571454376,1.04470187,4005.3,4005.1,1.40307771]
[1733571454578,0.07389331,4005.2,4005.1,1.32504509]
[1733571454778,1.04470187,4005.3,4005.1,1.32504509]
[1733571455026,0.07389331,4005.2,4005.1,1.32504509]
[1733571455184,0.07389331,4005.2,4005.1,1.40307766]
[1733571455508,0.07385687,4005.2,4005.1,1.40307766]
[1733571455718,1.04470187,4005.3,4005.1,1.40307766]
[1733571456028,0.07385687,4005.2,4005.1,1.32504509]
[1733571456211,0.07385687,4005.2,4005.1,1.40307764]
[1733571456412,1.04470187,4005.3,4005.1,1.40307764]
[1733571456717,0.07385687,4005.2,4005.1,1.32504509]
[1733571457024,1.04470187,4005.3,4005.1,1.40307765]
[1733571457209,0.07385687,4005.2,4005.1,1.32504509]
[1733571457517,2.34065804,4005.3,4005.1,1.40307771]
[1733571457699,0.07385687,4005.2,4005.1,1.32504509]
[1733571457895,1.04470187,4005.3,4005.1,1.32504509]
[1733571457896,2.34065804,4005.3,4005.1,0.12803261]
[1733571458109,0.07385687,4005.2,4005.1,0.05]
[1733571458319,1.04470187,4005.3,4005.1,0.12803268]
[1733571458525,2.34065804,4005.3,4005.2,0.07803268]
[1733571458733,1.04470187,4005.3,4005.2,0.07803268]
[1733571458935,2.34065804,4005.3,4005.2,0.07803268]
[1733571459221,1.29595617,4005.3,4005.1,0.05]
[1733571459384,1.04497927,4005.2,4005.1,0.05]
[1733571459586,1.04497927,4005.2,4005.1,0.12803267]
[1733571460002,2.34093544,4005.2,4005.1,0.12803267]
[1733571460324,1.04497927,4005.2,4005.1,0.12803267]
[1733571460549,1.29595617,4005.2,4005.1,0.12803267]
[1733571461625,2.3420171,4005.2,4005.1,0.12803267]
[1733571462637,1.29703783,4005.2,4005.1,0.12803267]
[1733571463951,1.37085424,4005.2,4005.1,0.12803267]
[1733571464536,2.94002294,4005.2,4005.1,0.05]
[1733571464742,2.94002294,4005.2,4005.1,0.12803278]
[1733571466731,2.94152752,4005.2,4005.1,0.12803278]
[1733571467446,1.37235882,4005.2,4005.1,0.12803278]
[1733571467769,1.37270077,4005.2,4005.1,0.12803278]
[1733571467977,1.37270077,4005.2,4005.1,0.05]
[1733571468175,1.37270077,4005.2,4005.1,0.12803268]
[1733571468467,3.09937837,4005.2,4005.1,0.12803268]
[1733571469428,5.1916033,4005.2,4005.1,0.12803268]
[1733571471535,5.1916033,4005.2,4005.1,0.05]
[1733571471733,5.19245542,4005.2,4005.1,0.1280328]
[1733571474669,5.19245542,4005.2,4005.1,0.12803284]
[1733571476853,5.19243558,4005.2,4005.1,0.12803284]
[1733571477467,3.10021065,4005.2,4005.1,0.12803284]
[1733571478180,2.97441779,4005.2,4005.1,0.12803284]
[1733571478475,8.72898943,4005.2,4005.1,0.12803284]
[1733571478679,8.16957403,4005.2,4005.1,0.12803284]
[1733571478831,5.54983779,4005.2,4005.1,0.12803284]
[1733571479035,5.54983779,4005.2,4005.1,0.05]
[1733571479645,5.54983779,4005.2,4004.3,0.7976]
[1733571479646,3.80211779,4005.2,4004.8,0.05]
[1733571479875,2.52205,4004.9,4004.8,0.05]
[1733571480076,6.96688202,4004.9,4004.8,0.05]
[1733571480233,7.03709445,4004.9,4004.8,0.05]
[1733571480437,7.03710999,4004.9,4004.8,0.05]
[1733571480897,7.03793391,4004.9,4004.8,0.05]
[1733571481209,6.84753777,4004.9,4004.8,0.05]
[1733571481366,8.59538777,4004.9,4004.8,0.05]
[1733571481567,5.45009628,4004.9,4004.8,0.05]
[1733571483210,3.89264242,4004.9,4004.8,0.05]
[1733571485191,3.89128708,4004.9,4004.8,0.05]
[1733571486063,1.74793,4004.8,4004.5,0.05]
[1733571486311,2.09430825,4004.6,4004.5,0.05]
[1733571486515,1.36923708,4004.6,4004.5,0.05]
[1733571486910,5.7351024,4004.6,4004.1,0.05]
[1733571487211,1.57053837,4004.2,4004.1,0.05]
[1733571487410,2.86956448,4004.2,4004.1,0.05]
[1733571487709,1.3686865,4004.2,4004.1,0.05]
[1733571489492,2.41515958,4004.2,4004.1,0.05]
[1733571489982,2.41515958,4004.2,4004.1,0.8409]
[1733571489983,0.06966039,4004.2,4004.1,0.8409]
[1733571490205,0.06966039,4004.2,4004.1,1.30536425]
[1733571490477,0.06958751,4004.2,4004.1,1.30536425]
[1733571490677,1.29772386,4004.5,4004.4,2.58897]
[1733571490929,2.34407657,4004.7,4004.5,0.7909]
[1733571491108,2.34410306,4004.6,4004.5,0.98878824]
[1733571491319,2.34385391,4004.6,4004.5,2.94841275]
[1733571491479,1.29762998,4004.6,4004.5,2.94841275]
[1733571491817,1.04622393,4004.7,4004.5,2.94841275]
[1733571492120,1.29761663,4004.6,4004.5,2.94841275]
[1733571492283,1.29761663,4004.6,4004.5,1.20038275]
[1733571492479,1.04622393,4004.8,4004.5,2.06594509]
[1733571492785,1.04622393,4004.8,4004.7,0.05]
[1733571493103,0.85625199,4004.8,4004.7,2.64217573]
[1733571493311,1.04622393,4005.3,4005.1,1.01408824]
[1733571493493,1.04622393,4005.4,4005.2,1.07715685]
[1733571493699,1.04622393,4005.5,4005.4,0.05]
[1733571493892,1.11384717,4005.5,4005.4,0.05]
[1733571494097,0.06762324,4005.5,4005.4,0.05]
[1733571494800,0.06762324,4005.5,4005.4,0.24788824]
[1733571495924,1.63816161,4005.5,4005.4,0.24788824]
[1733571496222,1.63816161,4005.5,4005.4,0.05]
[1733571496406,0.06762324,4005.5,4005.4,0.05]
[1733571497122,0.06762324,4005.5,4005.1,1.01408824]
[1733571497327,1.04587922,4005.2,4005.1,0.24788824]
[1733571497480,0.06787457,4005.2,4005.1,1.32504509]
[1733571497683,1.04587922,4005.3,4005.1,1.32504509]
[1733571497886,0.06787457,4005.2,4005.1,1.32504509]
[1733571498187,1.04587922,4005.3,4005.1,1.32504509]
[1733571498387,0.06787457,4005.2,4005.1,1.32504509]
[1733571499085,1.04587922,4005.3,4005.1,1.32504509]
[1733571499280,0.0678543,4005.2,4005.1,0.24788824]
[1733571499579,1.04587922,4005.3,4005.1,0.24788824]
[1733571499732,0.0678543,4005.2,4005.1,0.24788824]
[1733571500032,1.04587922,4005.3,4005.1,0.24788824]
[1733571500227,0.06800023,4005.2,4005.1,0.24788824]
[1733571500593,1.04587922,4005.3,4005.1,0.24788824]
[1733571500826,0.06799616,4005.2,4005.1,0.24788824]
[1733571501132,1.04587922,4005.3,4005.1,0.24788824]
[1733571501427,0.06799616,4005.2,4005.1,0.24788824]
[1733571502113,1.04587922,4005.4,4005.1,0.45701275]
[1733571502429,1.04587922,4005.5,4005.3,1.07715685]
[1733571502724,1.04587922,4005.6,4005.5,2.51669]
[1733571502897,1.04587922,4005.8,4005.7,0.05]
[1733571503107,1.04587922,4006.0,4005.7,1.7975]
[1733571503311,1.29679,4005.9,4005.8,1.74746]
[1733571503642,2.34266922,4006.1,4005.9,0.19788824]
[1733571503945,1.04587922,4006.1,4005.9,1.94529824]
[1733571504124,2.34266922,4006.1,4005.9,1.94529824]
[1733571504311,2.34266922,4006.2,4005.9,1.94529824]
[1733571504512,1.04587922,4006.2,4005.9,1.94529824]
[1733571504713,2.34223291,4006.3,4005.9,1.94529824]
[1733571505118,1.04587922,4006.3,4006.1,0.7691]
[1733571505308,2.34223291,4006.3,4006.2,1.74729]
[1733571505648,2.34223291,4006.4,4006.3,0.05]
[1733571505945,1.04587922,4006.4,4006.3,0.24788824]
[1733571506149,1.29635369,4006.5,4006.3,1.99511824]
[1733571506150,1.04587922,4006.5,4006.3,1.99511824]
[1733571506331,2.34223291,4006.6,4006.4,1.07715685]
[1733571506648,1.04587922,4006.7,4006.6,0.19788824]
[1733571507002,1.29635369,4006.7,4006.6,0.19788824]
[1733571507635,2.86689206,4006.8,4006.6,0.19788824]
[1733571507819,1.57053837,4006.8,4006.6,0.19788824]
[1733571508008,2.86689206,4006.8,4006.6,0.19788824]
[1733571508314,1.57053837,4006.8,4006.6,0.19788824]
[1733571508516,1.04404353,4006.7,4006.6,0.19788824]
[1733571508849,2.86526794,4006.8,4006.6,0.19788824]
[1733571509047,2.86526794,4006.8,4006.3,0.05]
[1733571509048,0.0664642,4006.7,4006.3,0.24788824]
[1733571509205,1.0438847,4006.6,4006.3,0.24788824]
[1733571509637,0.0664642,4006.5,4006.3,0.24788824]
[1733571509948,1.0438847,4006.7,4006.3,0.24788824]
[1733571510154,0.06650477,4006.4,4006.3,0.24788824]
[1733571510337,1.0438847,4006.7,4006.3,0.24788824]
[1733571510644,0.06650477,4006.6,4006.3,0.24788824]
[1733571511012,1.0438847,4006.7,4006.6,0.19788824]
[1733571512044,1.0438847,4006.8,4006.6,0.24788824]
[1733571512420,1.0438847,4006.9,4006.6,0.24788824]
[1733571513122,1.0438847,4006.8,4006.6,0.24788824]
[1733571513339,1.0438847,4006.9,4006.6,0.24788824]
[1733571514621,1.0438847,4006.9,4006.7,0.7691]
[1733571514821,1.0438847,4007.1,4006.7,0.7691]
[1733571515276,1.0438847,4007.2,4006.7,0.7691]
[1733571515565,1.2935033,4007.3,4007.1,0.05]
[1733571515566,1.0438847,4007.3,4007.1,0.05]
[1733571515766,1.57053837,4007.5,4007.4,0.05]
[1733571515767,1.0438847,4007.5,4007.4,0.05]
[1733571515969,2.337388,4007.6,4007.4,0.05]
[1733571516131,2.32483837,4007.8,4007.4,0.24788824]
[1733571516132,2.337388,4007.7,4007.4,0.24788824]
[1733571516328,1.0438847,4007.6,4007.4,0.24788824]
[1733571516527,2.337388,4007.7,4007.4,0.24788824]
[1733571516881,2.337388,4007.7,4007.4,1.01698824]
[1733571516882,1.0438847,4007.7,4007.4,1.01698824]
[1733571517175,2.84835116,4008.1,4007.7,0.19788824]
[1733571517176,1.0438847,4008.1,4007.7,0.19788824]
[1733571517382,1.0438847,4008.3,4007.8,1.12715685]
[1733571517672,1.7981847,4008.5,4007.8,1.12715685]
[1733571517856,2.64831338,4008.5,4007.8,1.12715685]
[1733571518056,1.7981847,4008.5,4008.3,0.19788824]
[1733571518589,0.7543,4008.5,4008.3,0.19788824]
[1733571518791,0.7543,4008.5,4008.2,0.05]
[1733571519449,1.0438847,4008.6,4008.2,0.05]
[1733571519649,2.39023837,4008.8,4008.3,0.19788824]
[1733571519650,1.8635847,4008.8,4008.3,0.19788824]
[1733571519892,0.8197,4008.8,4008.3,0.19788824]
[1733571521090,0.8197,4009.1,4008.6,0.19788824]
[1733571521293,1.53225579,4009.1,4008.6,0.19788824]
[1733571521652,3.27827579,4009.1,4008.6,0.19788824]
[1733571522150,1.53225579,4009.1,4008.6,0.19788824]
[1733571522890,0.65610928,4009.3,4008.6,0.24788824]
[1733571523697,2.40204928,4009.3,4008.6,0.24788824]
[1733571524003,1.74608,4009.0,4008.6,0.24788824]
[1733571524191,0.8197,4009.1,4008.6,0.24788824]
[1733571524500,2.56573,4009.1,4008.6,0.24788824]
[1733571524796,0.06569341,4009.0,4008.6,0.24788824]
[1733571525363,1.81177341,4009.0,4008.6,0.24788824]
[1733571525787,0.06569341,4009.0,4008.6,0.24788824]
[1733571525999,1.74614,4008.9,4008.6,0.24788824]
[1733571526805,0.06569341,4008.8,4008.6,0.24788824]
[1733571528666,0.65610928,4009.3,4008.7,1.88425685]
[1733571528868,0.06356851,4009.2,4008.7,1.88425685]
[1733571529482,0.06356851,4009.2,4009.0,1.12715685]
[1733571529683,0.65610928,4009.3,4009.0,1.12715685]
[1733571529919,0.06151459,4009.2,4009.0,1.12715685]
[1733571530207,0.65610928,4009.3,4009.2,0.19788824]
[1733571530778,0.65610928,4009.3,4009.2,1.00498824]
[1733571532522,0.65610928,4009.3,4009.0,0.24788824]
[1733571533374,1.74602,4009.1,4009.0,0.24788824]
[1733571537319,1.74598,4009.2,4009.0,0.24788824]
[1733571537522,1.47580928,4009.3,4009.0,0.24788824]
[1733571537696,1.74602,4009.1,4009.0,0.24788824]
[1733571538079,1.74602,4009.1,4009.0,0.05]
[1733571538282,1.47580928,4009.3,4008.6,0.05]
[1733571538512,1.74625,4008.6,4008.4,0.19788824]
[1733571538826,1.74625,4008.6,4008.3,0.05]
[1733571539115,0.06057507,4008.5,4008.3,0.05]
[1733571539426,1.80687507,4008.5,4008.3,0.05]
[1733571540580,1.74633,4008.4,4008.3,0.05]
[1733571541017,1.80665311,4008.4,4008.3,0.05]
[1733571541617,1.80665311,4008.4,4008.0,0.05]
[1733571541618,1.74639,4008.3,4008.0,0.05]
[1733571541919,1.74643,4008.2,4008.0,0.05]
[1733571542125,0.06032311,4008.1,4008.0,0.05]
[1733571542482,1.74633,4008.4,4008.0,0.05]
[1733571542784,1.74646,4008.1,4008.0,0.05]
[1733571543105,1.74655,4007.9,4007.8,0.19788824]
[1733571543308,1.74655,4007.9,4007.7,0.05]
[1733571543625,1.74659,4007.8,4007.7,0.05]
[1733571543783,1.74667,4007.7,4007.5,0.19788824]
[1733571543975,1.74668,4007.6,4007.5,0.19788824]
[1733571544216,1.80674301,4007.6,4007.5,0.19788824]
[1733571545229,1.80674301,4007.6,4007.4,0.05]
[1733571545386,1.74672,4007.5,4007.4,0.05]
[1733571545787,1.80658789,4007.5,4007.4,0.05]
[1733571546432,1.80658789,4007.5,4007.2,0.19788824]
[1733571546433,1.74681,4007.3,4007.2,0.19788824]
[1733571546929,1.80662097,4007.3,4007.2,0.19788824]
[1733571547289,1.80662097,4007.3,4007.1,0.05]
[1733571547290,1.74685,4007.2,4007.1,0.05]
[1733571547525,1.80657964,4007.2,4007.1,0.05]
[1733571548827,1.80657964,4007.2,4007.1,0.05]
[1733571549234,0.05972964,4007.2,4007.1,0.05]
[1733571549416,0.05972964,4007.2,4007.1,1.10466706]
[1733571549621,1.74657,4007.9,4007.1,1.10466706]
[1733571550035,1.80399327,4007.8,4007.1,1.10466706]
[1733571550239,0.05739327,4007.8,4007.3,0.19788824]
[1733571550748,0.05745841,4007.7,4007.3,0.19788824]
[1733571551043,0.7569,4008.0,4007.3,0.19788824]
[1733571551044,1.8007847,4008.0,4007.3,0.19788824]
[1733571551244,1.74666,4007.7,4007.3,0.19788824]
[1733571551946,0.05745841,4007.6,4007.3,0.19788824]
[1733571552617,1.80415841,4007.6,4007.3,0.19788824]
[1733571552818,1.74673,4007.5,4007.3,0.19788824]
[1733571553251,0.05759274,4007.4,4007.3,0.19788824]
[1733571553461,1.80435274,4007.4,4007.1,0.05]
[1733571553755,1.74685,4007.2,4007.1,0.05]
[1733571553959,1.80441831,4007.2,4007.1,0.05]
[1733571554767,1.74698,4007.0,4006.7,0.24788824]
[1733571555059,1.80441831,4007.2,4006.7,0.24788824]
[1733571555060,1.74685,4007.2,4006.7,0.24788824]
[1733571555245,0.05756831,4006.9,4006.7,0.24788824]
[1733571555417,1.74685,4007.2,4006.7,0.24788824]
[1733571555617,0.05756831,4006.8,4006.7,0.5852553]
[1733571555814,1.74685,4007.2,4006.7,0.5852553]
[1733571556074,0.05751134,4006.8,4006.7,0.5852553]
[1733571556277,1.74685,4007.2,4006.7,0.5852553]
[1733571556487,0.05751134,4006.8,4006.7,0.5852553]
[1733571557080,0.05751134,4006.8,4006.7,0.05]
[1733571557081,1.74703,4006.8,4006.7,0.05]
[1733571557284,1.80454134,4006.8,4006.7,0.05]
[1733571557583,1.74709,4006.7,4006.5,0.05]
[1733571557957,0.05749911,4006.6,4006.5,0.05]
[1733571559676,1.74716,4006.5,4006.4,0.19788824]
[1733571559985,1.80458177,4006.5,4006.4,0.19788824]
[1733571560674,0.05742177,4006.5,4006.2,0.05]
[1733571560853,1.74724,4006.3,4006.2,0.05]
[1733571561181,1.80445819,4006.3,4006.1,0.19788824]
[1733571562194,1.74729,4006.2,4006.1,0.19788824]
[1733571562482,1.80440233,4006.2,4006.1,0.19788824]
[1733571562962,0.05711233,4006.2,4005.8,0.19788824]
[1733571563160,1.74719,4006.5,4005.6,0.05]
[1733571563161,1.0438847,4006.5,4005.6,0.05]
[1733571563359,1.80432233,4006.4,4005.6,0.05]
[1733571563963,1.74727,4006.3,4006.0,0.05]
[1733571564167,0.05702273,4006.2,4006.0,0.05]
[1733571564363,1.80431273,4006.2,4006.0,0.05]
[1733571564875,1.80431273,4006.2,4005.7,0.05]
[1733571565076,1.74734,4006.1,4005.7,0.05]
[1733571565280,2.51689,4006.0,4005.7,0.05]
[1733571565489,0.05699419,4006.0,4005.7,0.05]
[1733571565794,1.74716,4006.5,4005.8,0.8086]
[1733571565993,1.80423419,4006.4,4005.8,0.8086]
[1733571566187,1.80423419,4006.4,4006.0,0.05]
[1733571566771,1.80423419,4006.4,4006.0,0.24788824]
[1733571567101,0.05699419,4006.4,4006.0,0.24788824]
[1733571567400,1.74713,4006.6,4006.0,0.24788824]
[1733571567616,0.05698606,4006.5,4006.0,0.24788824]
[1733571567973,1.7472,4006.5,4006.0,0.24788824]
[1733571568201,0.05698606,4006.4,4006.0,0.24788824]
[1733571568600,1.80420606,4006.4,4006.0,0.24788824]
[1733571572180,1.74729,4006.2,4006.0,0.24788824]
[1733571572510,1.74733,4006.1,4005.7,0.24788824]
[1733571572692,1.80431606,4006.1,4005.7,0.24788824]
[1733571573869,0.05698606,4006.1,4005.7,0.24788824]
[1733571574273,2.57084,4006.3,4005.7,0.24788824]
[1733571574479,0.05698606,4006.0,4005.7,0.24788824]
[1733571574705,1.74729,4006.2,4005.7,0.24788824]
[1733571574871,0.05698606,4005.9,4005.7,0.24788824]
[1733571575181,0.05698606,4005.8,4005.7,0.24788824]
[1733571575383,1.74729,4006.2,4005.7,0.24788824]
[1733571575590,0.05698606,4006.1,4005.7,0.24788824]
[1733571579079,0.8236,4006.6,4005.7,0.24788824]
[1733571579080,1.74725,4006.3,4005.7,0.24788824]
[1733571579434,1.74729,4006.2,4005.7,0.24788824]
[1733571579717,1.80422309,4006.2,4005.7,0.24788824]
[1733571580907,1.74734,4006.1,4005.7,0.24788824]
[1733571581310,0.05692496,4006.0,4005.7,0.24788824]
[1733571583915,1.0438847,4006.3,4005.7,0.24788824]
[1733571584120,0.05692496,4005.9,4005.7,0.24788824]
[1733571584331,1.0438847,4006.3,4005.7,0.24788824]
[1733571584629,1.0438847,4006.2,4005.7,0.24788824]
[1733571584789,1.10080966,4006.2,4005.7,0.24788824]
[1733571585121,2.84811966,4006.2,4005.7,0.24788824]
[1733571585506,1.0438847,4006.1,4005.7,0.24788824]
[1733571586099,0.05692496,4006.0,4005.8,0.8256]
[1733571586514,0.05692496,4006.0,4005.9,0.36011676]
[1733571586691,1.0438847,4006.4,4006.1,0.19788824]
[1733571588497,1.0438847,4006.5,4006.1,0.19788824]
[1733571588825,1.0438847,4006.4,4006.1,0.19788824]
[1733571589420,1.0438847,4006.4,4006.2,0.90361042]
[1733571589627,2.33871653,4006.5,4006.2,1.11549087]
[1733571589926,1.0438847,4006.5,4006.2,1.11549087]
[1733571590226,1.04413296,4007.0,4006.7,0.8756]
[1733571590427,1.04413296,4007.2,4006.7,0.8756]
[1733571590720,1.04413296,4007.2,4007.0,0.05]
[1733571590919,1.04413296,4007.3,4007.0,0.05]
[1733571591113,1.04413296,4007.2,4007.0,0.05]
[1733571591317,2.3393312,4007.3,4007.0,0.05]
[1733571591487,1.04413296,4007.2,4007.0,0.05]
[1733571592585,1.04413296,4007.3,4007.0,0.05]
[1733571593619,1.04413296,4007.3,4007.2,0.19788824]
[1733571594653,2.86570081,4007.4,4007.2,0.19788824]
[1733571594950,1.57053837,4007.4,4007.2,0.19788824]
[1733571595150,2.86570081,4007.4,4007.2,0.19788824]
[1733571595352,1.57053837,4007.4,4007.2,0.19788824]
[1733571595520,2.86570081,4007.4,4007.2,0.19788824]
[1733571595851,1.57053837,4007.4,4007.2,0.19788824]
[1733571596054,2.86570081,4007.4,4007.2,0.19788824]
[1733571596240,1.29516244,4007.3,4007.2,0.19788824]
[1733571596926,1.29503185,4007.3,4007.2,0.19788824]
[1733571598313,2.86557022,4007.3,4007.2,0.19788824]
[1733571598513,2.86557022,4007.3,4006.9,0.19788824]
[1733571598720,1.044217,4007.1,4006.9,0.19788824]
[1733571599256,0.05376393,4007.0,4006.9,0.19788824]
[1733571603361,1.09798093,4007.0,4006.9,0.19788824]
[1733571603533,1.09798093,4007.0,4006.7,0.24788824]
[1733571603731,1.044217,4006.9,4006.7,0.24788824]
[1733571603943,1.09798093,4007.0,4006.7,0.24788824]
[1733571604149,0.0535521,4006.8,4006.7,0.24788824]
[1733571604323,1.044217,4007.0,4006.7,0.24788824]
[1733571604955,0.0535521,4006.9,4006.7,0.24788824]
[1733571605258,2.86559869,4006.8,4006.7,0.05]
[1733571605557,1.29506032,4006.8,4006.7,0.05]
[1733571605724,1.34856755,4006.8,4006.3,0.24788824]
[1733571606066,1.04426101,4006.4,4006.3,0.24788824]
[1733571606427,1.09757237,4006.4,4006.3,0.24788824]
[1733571606819,0.05331136,4006.4,4006.3,0.24788824]